[Event "Late-Titled-Tuesday-Blitz-June-18-2024"]
[Site "Chess.com"]
[Date "2024.06.18"]
[Round "4"]
[White "Losingexperience"]
[Black "maracayo"]
[Result "1-0"]
[WhiteElo "2732"]
[BlackElo "2425"]
[TimeControl "180+1"]
[EndTime "14:41:49 PDT"]
[Termination "Losingexperience won on time"]

1. e4 {[%clk 0:03:00.9]} 1... d6 {[%clk 0:02:59.8]} 2. d4 {[%clk 0:03:00.4]}
2... Nf6 {[%clk 0:02:59.3]} 3. Nc3 {[%clk 0:03:00.7]} 3... c6 {[%clk 0:02:59.5]}
4. Be3 {[%clk 0:03:00.4]} 4... Qa5 {[%clk 0:02:58.8]} 5. f3 {[%clk 0:02:59.3]}
5... e5 {[%clk 0:02:58.7]} 6. Ne2 {[%clk 0:02:59]} 6... Be7 {[%clk 0:02:58.2]}
7. Qd2 {[%clk 0:02:59.2]} 7... O-O {[%clk 0:02:57.7]} 8. a3 {[%clk 0:02:47.4]}
8... b5 {[%clk 0:02:54]} 9. Rd1 {[%clk 0:02:46.5]} 9... a6 {[%clk 0:02:38.6]}
10. Nc1 {[%clk 0:02:46.2]} 10... Nbd7 {[%clk 0:02:26.4]} 11. Nb3 {[%clk
0:02:43.3]} 11... Qc7 {[%clk 0:02:26.2]} 12. Be2 {[%clk 0:02:33.7]} 12... Re8
{[%clk 0:02:24.3]} 13. O-O {[%clk 0:02:33.2]} 13... Bb7 {[%clk 0:02:22.7]} 14.
Qe1 {[%clk 0:02:32.6]} 14... Bf8 {[%clk 0:02:17.1]} 15. Qg3 {[%clk 0:02:31.4]}
15... c5 {[%clk 0:02:14.3]} 16. dxe5 {[%clk 0:02:06.8]} 16... dxe5 {[%clk
0:02:11.5]} 17. Nd5 {[%clk 0:01:55.8]} 17... Bxd5 {[%clk 0:02:03.9]} 18. exd5
{[%clk 0:01:56.7]} 18... c4 {[%clk 0:02:01.2]} 19. Nc1 {[%clk 0:01:51.1]} 19...
Bc5 {[%clk 0:02:00.2]} 20. Bxc5 {[%clk 0:01:42]} 20... Qxc5+ {[%clk 0:01:59.3]}
21. Kh1 {[%clk 0:01:40.9]} 21... e4 {[%clk 0:01:50.1]} 22. fxe4 {[%clk
0:01:38.3]} 22... Nxe4 {[%clk 0:01:49.7]} 23. Qf4 {[%clk 0:01:35.3]} 23... Ndf6
{[%clk 0:01:47.4]} 24. d6 {[%clk 0:01:15.2]} 24... Rad8 {[%clk 0:01:41.4]} 25.
d7 {[%clk 0:01:12.9]} 25... Re7 {[%clk 0:01:32.2]} 26. b4 {[%clk 0:01:12.9]}
26... Qa7 {[%clk 0:01:03.5]} 27. g4 {[%clk 0:01:01.5]} 27... h6 {[%clk
0:00:56.9]} 28. h4 {[%clk 0:01:00.9]} 28... g5 {[%clk 0:00:44.8]} 29. hxg5
{[%clk 0:00:49.6]} 29... hxg5 {[%clk 0:00:45.7]} 30. Qh2 {[%clk 0:00:45.7]}
30... Kg7 {[%clk 0:00:35.7]} 31. Bf3 {[%clk 0:00:40.2]} 31... Rexd7 {[%clk
0:00:26.2]} 32. Rxd7 {[%clk 0:00:39.3]} 32... Qxd7 {[%clk 0:00:26.7]} 33. Qe5
{[%clk 0:00:34.6]} 33... Qd6 {[%clk 0:00:17.9]} 34. Qxd6 {[%clk 0:00:27.9]}
34... Rxd6 {[%clk 0:00:18.8]} 35. Re1 {[%clk 0:00:23.2]} 35... Nd2 {[%clk
0:00:16.2]} 36. Bb7 {[%clk 0:00:22.4]} 36... Nxg4 {[%clk 0:00:14.3]} 37. Ne2
{[%clk 0:00:21.1]} 37... Ne3 {[%clk 0:00:09.7]} 38. Ng3 {[%clk 0:00:16.6]} 1-0

[Event "Late-Titled-Tuesday-Blitz-June-18-2024"]
[Site "Chess.com"]
[Date "2024.06.18"]
[Round "4"]
[White "Chessdemon2019"]
[Black "MKlose11"]
[Result "0-1"]
[WhiteElo "2382"]
[BlackElo "2572"]
[TimeControl "180+1"]
[EndTime "14:41:50 PDT"]
[Termination "MKlose11 won by checkmate"]

1. e4 {[%clk 0:03:00.9]} 1... e6 {[%clk 0:02:57.4]} 2. g3 {[%clk 0:03:00.7]}
2... d5 {[%clk 0:02:58.3]} 3. Bg2 {[%clk 0:02:59.7]} 3... Nf6 {[%clk 0:02:58]}
4. e5 {[%clk 0:02:56.1]} 4... Nfd7 {[%clk 0:02:57.1]} 5. f4 {[%clk 0:02:56.3]}
5... c5 {[%clk 0:02:58]} 6. Nh3 {[%clk 0:02:53.6]} 6... Nc6 {[%clk 0:02:57.5]}
7. O-O {[%clk 0:02:53.5]} 7... Be7 {[%clk 0:02:57.8]} 8. d3 {[%clk 0:02:49]}
8... b5 {[%clk 0:02:53.1]} 9. c4 {[%clk 0:02:47.5]} 9... bxc4 {[%clk 0:02:48.1]}
10. dxc4 {[%clk 0:02:47.2]} 10... Nb6 {[%clk 0:02:48.2]} 11. b3 {[%clk
0:02:42.6]} 11... Nd4 {[%clk 0:02:38.3]} 12. Be3 {[%clk 0:02:35.1]} 12... Bb7
{[%clk 0:02:23.5]} 13. Nd2 {[%clk 0:01:49.6]} 13... Rb8 {[%clk 0:01:57.7]} 14.
Rc1 {[%clk 0:01:34.3]} 14... O-O {[%clk 0:01:55.9]} 15. Ng5 {[%clk 0:01:08.1]}
15... Bxg5 {[%clk 0:01:52.5]} 16. fxg5 {[%clk 0:01:07.8]} 16... dxc4 {[%clk
0:01:53]} 17. Nxc4 {[%clk 0:01:04.1]} 17... Bxg2 {[%clk 0:01:51.4]} 18. Kxg2
{[%clk 0:01:02.4]} 18... Nf5 {[%clk 0:01:51.6]} 19. Qxd8 {[%clk 0:00:57.7]}
19... Rfxd8 {[%clk 0:01:39.5]} 20. Bxc5 {[%clk 0:00:53.1]} 20... Nxc4 {[%clk
0:01:36.6]} 21. Rxc4 {[%clk 0:00:53.1]} 21... Rbc8 {[%clk 0:01:34.8]} 22. Bxa7
{[%clk 0:00:50]} 22... Rxc4 {[%clk 0:01:31.4]} 23. bxc4 {[%clk 0:00:49.5]} 23...
Ra8 {[%clk 0:01:32.3]} 24. Bf2 {[%clk 0:00:40.7]} 24... Rxa2 {[%clk 0:01:32]}
25. Rc1 {[%clk 0:00:37.5]} 25... Kf8 {[%clk 0:01:17]} 26. Kf3 {[%clk 0:00:35.4]}
26... Ke7 {[%clk 0:01:15.6]} 27. g4 {[%clk 0:00:35.3]} 27... Ra3+ {[%clk
0:01:11.5]} 28. Kf4 {[%clk 0:00:33.3]} 28... Ra2 {[%clk 0:01:06.3]} 29. Rf1
{[%clk 0:00:33.3]} 29... Ra4 {[%clk 0:01:00.4]} 30. gxf5 {[%clk 0:00:33.3]}
30... Rxc4+ {[%clk 0:01:00.5]} 31. Kf3 {[%clk 0:00:32.4]} 31... exf5 {[%clk
0:01:00.6]} 32. Ra1 {[%clk 0:00:26.3]} 32... Ke6 {[%clk 0:01:00.3]} 33. Ra7
{[%clk 0:00:21]} 33... Rg4 {[%clk 0:00:51.3]} 34. Be3 {[%clk 0:00:19.8]} 34...
Rh4 {[%clk 0:00:38.9]} 35. Bf4 {[%clk 0:00:19.7]} 35... Rh3+ {[%clk 0:00:32.4]}
36. Kg2 {[%clk 0:00:19.9]} 36... Rb3 {[%clk 0:00:31.6]} 37. Ra6+ {[%clk
0:00:18.8]} 37... Kd5 {[%clk 0:00:29.9]} 38. h4 {[%clk 0:00:11.2]} 38... Rb4
{[%clk 0:00:22.6]} 39. Kf3 {[%clk 0:00:07.8]} 39... Rb3+ {[%clk 0:00:22.6]} 40.
Kf2 {[%clk 0:00:03]} 40... Ke4 {[%clk 0:00:20.3]} 41. Bg3 {[%clk 0:00:01.5]}
41... Rb2+ {[%clk 0:00:17.7]} 42. Kg1 {[%clk 0:00:01.5]} 42... Kf3 {[%clk
0:00:18.1]} 43. Bh2 {[%clk 0:00:01.2]} 43... Rb1# {[%clk 0:00:17.5]} 0-1

[Event "Late-Titled-Tuesday-Blitz-June-18-2024"]
[Site "Chess.com"]
[Date "2024.06.18"]
[Round "4"]
[White "kaanadayhamle"]
[Black "Bauman_Guy"]
[Result "0-1"]
[WhiteElo "2423"]
[BlackElo "2911"]
[TimeControl "180+1"]
[EndTime "14:41:51 PDT"]
[Termination "Bauman_Guy won by resignation"]

1. d4 {[%clk 0:03:00.9]} 1... Nf6 {[%clk 0:02:59.3]} 2. Nf3 {[%clk 0:03:00.4]}
2... e6 {[%clk 0:02:58.8]} 3. g3 {[%clk 0:03:00.8]} 3... b5 {[%clk 0:02:58.6]}
4. Bg2 {[%clk 0:03:01]} 4... Bb7 {[%clk 0:02:58.5]} 5. O-O {[%clk 0:03:01.6]}
5... c5 {[%clk 0:02:59.2]} 6. e3 {[%clk 0:03:00.7]} 6... d5 {[%clk 0:02:59.1]}
7. a4 {[%clk 0:02:59.7]} 7... b4 {[%clk 0:02:59.2]} 8. dxc5 {[%clk 0:02:59.3]}
8... Bxc5 {[%clk 0:02:58.9]} 9. Nbd2 {[%clk 0:02:59.3]} 9... Nbd7 {[%clk
0:02:58.8]} 10. Nb3 {[%clk 0:02:59.4]} 10... Bd6 {[%clk 0:02:57.8]} 11. a5
{[%clk 0:02:59.9]} 11... O-O {[%clk 0:02:57.5]} 12. Bd2 {[%clk 0:02:59.9]} 12...
Ba6 {[%clk 0:02:56.9]} 13. Re1 {[%clk 0:02:58.7]} 13... Qe7 {[%clk 0:02:57.3]}
14. Nfd4 {[%clk 0:02:57.5]} 14... Rfc8 {[%clk 0:02:57.4]} 15. h3 {[%clk
0:02:42.3]} 15... Ne5 {[%clk 0:02:57.4]} 16. Bf1 {[%clk 0:02:26]} 16... Nc4
{[%clk 0:02:55.2]} 17. Rb1 {[%clk 0:02:21.5]} 17... Ne4 {[%clk 0:02:53.4]} 18.
Bc1 {[%clk 0:02:17.1]} 18... Rc7 {[%clk 0:02:49]} 19. Bd3 {[%clk 0:02:09.3]}
19... Rac8 {[%clk 0:02:45.9]} 20. Nd2 {[%clk 0:01:57.8]} 20... Nc5 {[%clk
0:02:26.4]} 21. Bxc4 {[%clk 0:01:48.5]} 21... dxc4 {[%clk 0:02:25.3]} 22. e4
{[%clk 0:01:48.8]} 22... Rd7 {[%clk 0:02:13.2]} 23. c3 {[%clk 0:01:17.3]} 23...
Nd3 {[%clk 0:02:09.6]} 24. Rf1 {[%clk 0:01:17.5]} 24... Bc5 {[%clk 0:02:01.8]}
25. N2f3 {[%clk 0:01:12.6]} 25... e5 {[%clk 0:01:57.2]} 26. Nf5 {[%clk
0:01:12.6]} 26... Qe6 {[%clk 0:01:56.4]} 27. Qe2 {[%clk 0:01:11]} 27... f6
{[%clk 0:01:54.4]} 28. Be3 {[%clk 0:01:06.7]} 28... Bf8 {[%clk 0:01:53.3]} 29.
Kh2 {[%clk 0:01:03.3]} 29... b3 {[%clk 0:01:52.1]} 30. Nd2 {[%clk 0:00:54]}
30... Rcd8 {[%clk 0:01:51.9]} 31. f4 {[%clk 0:00:26.3]} 31... Kh8 {[%clk
0:01:48.4]} 32. fxe5 {[%clk 0:00:21.1]} 32... fxe5 {[%clk 0:01:45.5]} 33. Nf3
{[%clk 0:00:20.2]} 33... h6 {[%clk 0:01:42.6]} 34. N5h4 {[%clk 0:00:11.9]} 34...
Bb7 {[%clk 0:01:29.1]} 35. Bxa7 {[%clk 0:00:09.5]} 35... Nc5 {[%clk 0:01:17.5]}
36. Bxc5 {[%clk 0:00:08.5]} 36... Bxc5 {[%clk 0:01:18.4]} 37. Rbd1 {[%clk
0:00:08.1]} 37... Rd3 {[%clk 0:01:17.3]} 38. Rxd3 {[%clk 0:00:08.1]} 38... Rxd3
{[%clk 0:01:13.3]} 39. Rd1 {[%clk 0:00:07.7]} 39... Bxe4 {[%clk 0:01:07.8]} 40.
Rxd3 {[%clk 0:00:06.9]} 40... Bxd3 {[%clk 0:01:08.7]} 41. Qxe5 {[%clk
0:00:06.5]} 41... Qxe5 {[%clk 0:01:09.1]} 42. Nxe5 {[%clk 0:00:07.4]} 42... Ba3
{[%clk 0:01:09.4]} 43. a6 {[%clk 0:00:06.3]} 43... Bxb2 {[%clk 0:01:09.5]} 44.
a7 {[%clk 0:00:05.6]} 44... Be4 {[%clk 0:01:10]} 45. Nxc4 {[%clk 0:00:05.1]}
45... Bxc3 {[%clk 0:01:10.4]} 46. Ng6+ {[%clk 0:00:03.7]} 46... Kh7 {[%clk
0:01:08.5]} 47. Nf4 {[%clk 0:00:01]} 47... b2 {[%clk 0:01:04.9]} 48. Nxb2 {[%clk
0:00:01.6]} 48... Bxb2 {[%clk 0:01:04.2]} 49. Ne6 {[%clk 0:00:02.2]} 49... Be5
{[%clk 0:00:53.7]} 50. Nc5 {[%clk 0:00:02.5]} 50... Ba8 {[%clk 0:00:51]} 51. Nd7
{[%clk 0:00:02.8]} 51... Bd4 {[%clk 0:00:50.5]} 52. Nf8+ {[%clk 0:00:03.2]}
52... Kg8 {[%clk 0:00:50.1]} 53. Ne6 {[%clk 0:00:03.8]} 53... Bxa7 {[%clk
0:00:50.5]} 54. Nc7 {[%clk 0:00:04.7]} 54... Bb7 {[%clk 0:00:49.6]} 55. Nb5
{[%clk 0:00:05.2]} 55... Bb8 {[%clk 0:00:49.5]} 56. Nd6 {[%clk 0:00:06.1]} 56...
Bxd6 {[%clk 0:00:49.5]} 0-1

[Event "Late-Titled-Tuesday-Blitz-June-18-2024"]
[Site "Chess.com"]
[Date "2024.06.18"]
[Round "4"]
[White "DanielNaroditsky"]
[Black "jbking07"]
[Result "1-0"]
[WhiteElo "3136"]
[BlackElo "2390"]
[TimeControl "180+1"]
[EndTime "14:41:51 PDT"]
[Termination "DanielNaroditsky won by resignation"]

1. e4 {[%clk 0:03:00.9]} 1... c6 {[%clk 0:02:50.7]} 2. d4 {[%clk 0:02:57.8]}
2... d5 {[%clk 0:02:50.7]} 3. f3 {[%clk 0:02:58.2]} 3... dxe4 {[%clk 0:02:46.6]}
4. fxe4 {[%clk 0:02:59.1]} 4... e5 {[%clk 0:02:46.7]} 5. Nf3 {[%clk 0:02:59.8]}
5... exd4 {[%clk 0:02:46.5]} 6. Bc4 {[%clk 0:03:00]} 6... Be7 {[%clk 0:02:44.2]}
7. O-O {[%clk 0:02:59.7]} 7... Be6 {[%clk 0:02:06.8]} 8. Bxe6 {[%clk 0:02:44]}
8... fxe6 {[%clk 0:02:07.7]} 9. Nxd4 {[%clk 0:02:44.3]} 9... Qd7 {[%clk
0:01:20.8]} 10. Qh5+ {[%clk 0:02:37.2]} 10... g6 {[%clk 0:01:17.8]} 11. Qe5
{[%clk 0:02:36.6]} 11... Nf6 {[%clk 0:01:06.5]} 12. Bg5 {[%clk 0:02:23.1]} 12...
c5 {[%clk 0:01:06.2]} 13. Bxf6 {[%clk 0:01:27.8]} 13... Bxf6 {[%clk 0:01:05.4]}
14. Rxf6 {[%clk 0:01:25.8]} 14... Qxd4+ {[%clk 0:01:05]} 15. Qxd4 {[%clk
0:01:26.3]} 15... cxd4 {[%clk 0:01:05.8]} 16. Rxe6+ {[%clk 0:01:27.1]} 16... Kd7
{[%clk 0:01:06]} 17. Re5 {[%clk 0:01:23.8]} 17... Nc6 {[%clk 0:01:06.3]} 18.
Rd5+ {[%clk 0:01:24.4]} 18... Kc7 {[%clk 0:01:06.7]} 19. Nd2 {[%clk 0:01:24.3]}
19... Rae8 {[%clk 0:01:06]} 20. Rf1 {[%clk 0:01:23.5]} 20... Rhf8 {[%clk
0:01:06]} 21. Rxf8 {[%clk 0:01:23.3]} 21... Rxf8 {[%clk 0:01:06.9]} 22. Nf3
{[%clk 0:01:21.7]} 22... Re8 {[%clk 0:01:01.1]} 23. e5 {[%clk 0:01:22.1]} 23...
h6 {[%clk 0:00:44.9]} 24. h4 {[%clk 0:01:20.9]} 24... Rd8 {[%clk 0:00:34.2]} 25.
Rc5 {[%clk 0:00:44.9]} 25... Kb6 {[%clk 0:00:30.1]} 26. Rc4 {[%clk 0:00:45]}
26... Kb5 {[%clk 0:00:19.6]} 27. b3 {[%clk 0:00:45]} 27... Rd5 {[%clk
0:00:18.8]} 28. e6 {[%clk 0:00:44.2]} 28... Rd6 {[%clk 0:00:16.5]} 29. e7 {[%clk
0:00:31.4]} 29... Nxe7 {[%clk 0:00:15.8]} 30. Nxd4+ {[%clk 0:00:31.5]} 30... Kb6
{[%clk 0:00:16.2]} 31. Rb4+ {[%clk 0:00:31.5]} 31... Ka6 {[%clk 0:00:16.3]} 32.
Nf3 {[%clk 0:00:22]} 32... b6 {[%clk 0:00:13.9]} 33. Re4 {[%clk 0:00:20]} 33...
Nf5 {[%clk 0:00:14.1]} 34. Kf2 {[%clk 0:00:20.5]} 34... Rc6 {[%clk 0:00:13.7]}
35. c4 {[%clk 0:00:20.7]} 35... Ka5 {[%clk 0:00:14.2]} 36. g4 {[%clk 0:00:19.9]}
36... Ng7 {[%clk 0:00:12.2]} 37. Re7 {[%clk 0:00:20]} 37... Ne6 {[%clk
0:00:11.7]} 38. Ne5 {[%clk 0:00:17]} 38... Rd6 {[%clk 0:00:10.4]} 39. c5 {[%clk
0:00:17.7]} 39... Rd2+ {[%clk 0:00:04.7]} 40. Ke3 {[%clk 0:00:18]} 40... Rxa2
{[%clk 0:00:03.8]} 41. Rxe6 {[%clk 0:00:18.4]} 41... bxc5 {[%clk 0:00:04.2]} 42.
Rxg6 {[%clk 0:00:18.1]} 42... Kb4 {[%clk 0:00:04.7]} 43. Nd3+ {[%clk 0:00:18.5]}
43... Kxb3 {[%clk 0:00:04.6]} 44. Nc1+ {[%clk 0:00:19.1]} 44... Kb2 {[%clk
0:00:05]} 45. Nxa2 {[%clk 0:00:20]} 45... Kxa2 {[%clk 0:00:05.7]} 46. Rxh6
{[%clk 0:00:20.5]} 46... c4 {[%clk 0:00:05.3]} 47. Rc6 {[%clk 0:00:20.6]} 47...
Kb3 {[%clk 0:00:06.2]} 48. Kd4 {[%clk 0:00:20.7]} 48... a5 {[%clk 0:00:07.1]}
49. Rxc4 {[%clk 0:00:21.2]} 1-0

[Event "Late-Titled-Tuesday-Blitz-June-18-2024"]
[Site "Chess.com"]
[Date "2024.06.18"]
[Round "4"]
[White "Freeeeeeeeeeeeeeeeee"]
[Black "Hirna2005"]
[Result "1-0"]
[WhiteElo "1881"]
[BlackElo "2266"]
[TimeControl "180+1"]
[EndTime "14:41:55 PDT"]
[Termination "Freeeeeeeeeeeeeeeeee won on time"]

1. d4 {[%clk 0:03:00.9]} 1... g6 {[%clk 0:03:00.1]} 2. h4 {[%clk 0:02:59.9]}
2... c5 {[%clk 0:02:58.8]} 3. h5 {[%clk 0:03:00.8]} 3... cxd4 {[%clk 0:02:56.6]}
4. hxg6 {[%clk 0:02:58.7]} 4... fxg6 {[%clk 0:02:54.8]} 5. Qxd4 {[%clk
0:02:51.4]} 5... Nf6 {[%clk 0:02:54.6]} 6. e4 {[%clk 0:02:50.9]} 6... Nc6 {[%clk
0:02:54.4]} 7. Qd3 {[%clk 0:02:49.2]} 7... Bg7 {[%clk 0:02:47.8]} 8. Nf3 {[%clk
0:02:45.5]} 8... d6 {[%clk 0:02:47.1]} 9. Nc3 {[%clk 0:02:41.3]} 9... Bg4 {[%clk
0:02:44.2]} 10. Bh6 {[%clk 0:02:37.9]} 10... Bxh6 {[%clk 0:02:39.1]} 11. Rxh6
{[%clk 0:02:36.6]} 11... Qa5 {[%clk 0:02:33.4]} 12. O-O-O {[%clk 0:02:20.5]}
12... O-O-O {[%clk 0:02:15.8]} 13. Be2 {[%clk 0:02:07.4]} 13... Kb8 {[%clk
0:01:55.2]} 14. Kb1 {[%clk 0:02:05.5]} 14... Nh5 {[%clk 0:01:45.8]} 15. Qe3
{[%clk 0:01:54.1]} 15... Rdf8 {[%clk 0:01:27.8]} 16. Nd5 {[%clk 0:01:46.6]}
16... e6 {[%clk 0:01:14.3]} 17. Nc3 {[%clk 0:01:42.7]} 17... Nf4 {[%clk
0:01:03.6]} 18. Bf1 {[%clk 0:01:40.7]} 18... Bxf3 {[%clk 0:00:54.6]} 19. gxf3
{[%clk 0:01:35.9]} 19... Nh5 {[%clk 0:00:33.8]} 20. Rxd6 {[%clk 0:01:32.6]}
20... Qe5 {[%clk 0:00:30.8]} 21. Rd1 {[%clk 0:01:30.3]} 21... Rf4 {[%clk
0:00:29.4]} 22. Ne2 {[%clk 0:01:19.9]} 22... Rf7 {[%clk 0:00:18]} 23. Bh3 {[%clk
0:01:13.5]} 23... Nb4 {[%clk 0:00:14.5]} 24. c3 {[%clk 0:01:06.7]} 24... Nc6
{[%clk 0:00:13.7]} 25. Bg4 {[%clk 0:00:59.2]} 25... Nf6 {[%clk 0:00:11.9]} 26.
Rhh1 {[%clk 0:00:49.8]} 26... h5 {[%clk 0:00:11.1]} 27. Bh3 {[%clk 0:00:48.6]}
27... Rhf8 {[%clk 0:00:10.9]} 28. Bg2 {[%clk 0:00:46.2]} 28... Nd7 {[%clk
0:00:09.5]} 29. f4 {[%clk 0:00:45.2]} 29... Qa5 {[%clk 0:00:09.3]} 30. Bh3
{[%clk 0:00:42.3]} 30... Re7 {[%clk 0:00:07.1]} 31. Rhg1 {[%clk 0:00:39]} 31...
Nb6 {[%clk 0:00:03.9]} 32. Rxg6 {[%clk 0:00:37.6]} 32... Nc4 {[%clk 0:00:03.9]}
33. Qc1 {[%clk 0:00:32.3]} 33... Qb5 {[%clk 0:00:03]} 34. Ng3 {[%clk 0:00:21.2]}
34... Na3+ {[%clk 0:00:02.5]} 35. Ka1 {[%clk 0:00:21.2]} 35... Nc4 {[%clk
0:00:02.8]} 36. Rxe6 {[%clk 0:00:19.6]} 36... Rxe6 {[%clk 0:00:01.4]} 37. Bxe6
{[%clk 0:00:20.5]} 37... N6a5 {[%clk 0:00:01.8]} 38. f5 {[%clk 0:00:17.9]} 38...
Qa4 {[%clk 0:00:01.6]} 39. Bxc4 {[%clk 0:00:17.2]} 39... Nxc4 {[%clk 0:00:01.3]}
40. b3 {[%clk 0:00:11.1]} 40... Qa6 {[%clk 0:00:01]} 41. bxc4 {[%clk 0:00:11.4]}
41... Qf6 {[%clk 0:00:01]} 42. Qf4+ {[%clk 0:00:11.1]} 1-0

[Event "Late-Titled-Tuesday-Blitz-June-18-2024"]
[Site "Chess.com"]
[Date "2024.06.18"]
[Round "4"]
[White "cthulhuuu"]
[Black "Winner_7777"]
[Result "1-0"]
[WhiteElo "2396"]
[BlackElo "2542"]
[TimeControl "180+1"]
[EndTime "14:41:56 PDT"]
[Termination "cthulhuuu won on time"]

1. e4 {[%clk 0:03:00.3]} 1... c5 {[%clk 0:02:58.9]} 2. Nf3 {[%clk 0:03:00.6]}
2... d6 {[%clk 0:02:59.4]} 3. g3 {[%clk 0:03:01.1]} 3... Nf6 {[%clk 0:02:59.7]}
4. d3 {[%clk 0:03:01.8]} 4... Nc6 {[%clk 0:02:59.2]} 5. Bg2 {[%clk 0:03:02.2]}
5... g6 {[%clk 0:02:59.5]} 6. O-O {[%clk 0:03:02.9]} 6... Bg7 {[%clk 0:03:00.1]}
7. Re1 {[%clk 0:03:03.5]} 7... O-O {[%clk 0:03:00.7]} 8. c3 {[%clk 0:03:04.3]}
8... b5 {[%clk 0:02:56.9]} 9. e5 {[%clk 0:02:55]} 9... Nd5 {[%clk 0:02:56.2]}
10. exd6 {[%clk 0:02:53.1]} 10... Qxd6 {[%clk 0:02:57.1]} 11. Nbd2 {[%clk
0:02:51.3]} 11... e5 {[%clk 0:02:17.7]} 12. Ne4 {[%clk 0:02:45.2]} 12... Qe7
{[%clk 0:02:16.2]} 13. Qb3 {[%clk 0:02:43.3]} 13... Nc7 {[%clk 0:00:39.3]} 14.
Bg5 {[%clk 0:02:38]} 14... Qe6 {[%clk 0:00:21]} 15. Nxc5 {[%clk 0:02:30.8]}
15... Qd6 {[%clk 0:00:19.3]} 16. Ne4 {[%clk 0:02:28.6]} 16... Qxd3 {[%clk
0:00:18.8]} 17. Nf6+ {[%clk 0:02:20.9]} 17... Bxf6 {[%clk 0:00:18.9]} 18. Bxf6
{[%clk 0:02:21.8]} 18... Be6 {[%clk 0:00:19.4]} 19. Qa3 {[%clk 0:02:10.6]} 19...
b4 {[%clk 0:00:11.6]} 20. Qa4 {[%clk 0:02:08.9]} 20... Bd5 {[%clk 0:00:08.7]}
21. Rad1 {[%clk 0:02:06.4]} 21... Qf5 {[%clk 0:00:05.5]} 22. Rxd5 {[%clk
0:01:59.3]} 22... Nxd5 {[%clk 0:00:06.4]} 23. Qxc6 {[%clk 0:01:59.7]} 23... Nxf6
{[%clk 0:00:06.8]} 24. Rxe5 {[%clk 0:01:55.5]} 24... Qb1+ {[%clk 0:00:06.7]} 25.
Re1 {[%clk 0:01:55.7]} 25... Qf5 {[%clk 0:00:05.3]} 26. Nd4 {[%clk 0:01:51.5]}
26... Qg5 {[%clk 0:00:03.8]} 27. f4 {[%clk 0:01:48.3]} 27... Qa5 {[%clk
0:00:04]} 28. Qxf6 {[%clk 0:01:46.6]} 28... Rae8 {[%clk 0:00:03.7]} 29. Re5
{[%clk 0:01:30]} 29... Qxa2 {[%clk 0:00:03]} 30. Nc6 {[%clk 0:00:54.6]} 30...
Qb1+ {[%clk 0:00:02]} 31. Bf1 {[%clk 0:00:54.7]} 31... Qxb2 {[%clk 0:00:02.3]}
32. cxb4 {[%clk 0:00:12.9]} 32... Rxe5 {[%clk 0:00:01.1]} 33. Qxe5 {[%clk
0:00:12]} 33... h5 {[%clk 0:00:01.6]} 34. Qxb2 {[%clk 0:00:12.1]} 1-0

[Event "Late-Titled-Tuesday-Blitz-June-18-2024"]
[Site "Chess.com"]
[Date "2024.06.18"]
[Round "4"]
[White "KorolDimitriy75"]
[Black "HouseOfDurin"]
[Result "0-1"]
[WhiteElo "2480"]
[BlackElo "2341"]
[TimeControl "180+1"]
[EndTime "14:41:57 PDT"]
[Termination "HouseOfDurin won on time"]

1. d4 {[%clk 0:03:00.9]} 1... Nf6 {[%clk 0:02:59.6]} 2. c4 {[%clk 0:03:01]} 2...
c5 {[%clk 0:03:00]} 3. d5 {[%clk 0:03:00.8]} 3... b5 {[%clk 0:03:00.7]} 4. Nd2
{[%clk 0:03:00.8]} 4... bxc4 {[%clk 0:03:00.5]} 5. e4 {[%clk 0:03:00.7]} 5... d6
{[%clk 0:03:01.3]} 6. Bxc4 {[%clk 0:03:00.3]} 6... Nbd7 {[%clk 0:03:01.8]} 7.
Ngf3 {[%clk 0:02:59]} 7... g6 {[%clk 0:03:02.1]} 8. b3 {[%clk 0:02:59]} 8... Bg7
{[%clk 0:03:02.7]} 9. Bb2 {[%clk 0:02:59.3]} 9... O-O {[%clk 0:03:03.1]} 10. h3
{[%clk 0:02:59]} 10... a5 {[%clk 0:03:00.2]} 11. a4 {[%clk 0:02:56.1]} 11... Nb6
{[%clk 0:02:58.6]} 12. Qc2 {[%clk 0:02:50.4]} 12... Nxc4 {[%clk 0:02:57.5]} 13.
bxc4 {[%clk 0:02:50.4]} 13... Rb8 {[%clk 0:02:56.1]} 14. Bc3 {[%clk 0:02:50]}
14... Nd7 {[%clk 0:02:48.9]} 15. Bxg7 {[%clk 0:02:46.7]} 15... Kxg7 {[%clk
0:02:49.8]} 16. O-O {[%clk 0:02:43.5]} 16... Rb4 {[%clk 0:02:41.1]} 17. Rfe1
{[%clk 0:02:41.6]} 17... Qc7 {[%clk 0:02:33.6]} 18. Qc3+ {[%clk 0:02:36.1]}
18... Kg8 {[%clk 0:02:32]} 19. e5 {[%clk 0:02:33.9]} 19... Nxe5 {[%clk
0:02:31.4]} 20. Nxe5 {[%clk 0:02:34.8]} 20... dxe5 {[%clk 0:02:31.2]} 21. Rxe5
{[%clk 0:02:33.8]} 21... e6 {[%clk 0:02:29.8]} 22. dxe6 {[%clk 0:02:02.5]} 22...
Bxe6 {[%clk 0:02:30.7]} 23. Qe3 {[%clk 0:01:27.6]} 23... Rd8 {[%clk 0:02:04.8]}
24. Rxc5 {[%clk 0:01:14.5]} 24... Qb6 {[%clk 0:02:04.9]} 25. Ne4 {[%clk
0:00:48.3]} 25... Rxc4 {[%clk 0:01:40.8]} 26. Rc8 {[%clk 0:00:26.9]} 26... Qd4
{[%clk 0:01:31.3]} 27. Rxc4 {[%clk 0:00:13.8]} 27... Qxe3 {[%clk 0:01:29]} 28.
fxe3 {[%clk 0:00:12.5]} 28... Bxc4 {[%clk 0:01:29.5]} 29. Nc5 {[%clk 0:00:10.8]}
29... Rd2 {[%clk 0:01:20.3]} 30. Rc1 {[%clk 0:00:08.6]} 30... Bd5 {[%clk
0:01:11.5]} 31. e4 {[%clk 0:00:08.7]} 31... Bc6 {[%clk 0:00:57.1]} 32. Rc4
{[%clk 0:00:08.5]} 32... Rb2 {[%clk 0:00:38.2]} 33. g4 {[%clk 0:00:05.5]} 33...
Kg7 {[%clk 0:00:29.1]} 34. e5 {[%clk 0:00:05.4]} 34... Rb4 {[%clk 0:00:26]} 35.
Rxb4 {[%clk 0:00:05.2]} 35... axb4 {[%clk 0:00:26.9]} 36. a5 {[%clk 0:00:05.2]}
36... Bd5 {[%clk 0:00:23.1]} 37. Kf2 {[%clk 0:00:03.3]} 37... b3 {[%clk
0:00:23.7]} 38. Nd3 {[%clk 0:00:03.3]} 38... Be4 {[%clk 0:00:22.6]} 39. Nb2
{[%clk 0:00:03]} 39... Kf8 {[%clk 0:00:21.6]} 40. Ke3 {[%clk 0:00:03.2]} 40...
Bb7 {[%clk 0:00:21.3]} 41. Kd4 {[%clk 0:00:02.6]} 41... Ke7 {[%clk 0:00:21.9]}
42. Kc5 {[%clk 0:00:02.6]} 42... Ke6 {[%clk 0:00:21.3]} 43. Kb6 {[%clk
0:00:02.1]} 43... Be4 {[%clk 0:00:20.7]} 44. a6 {[%clk 0:00:01.1]} 44... Kxe5
{[%clk 0:00:21.2]} 45. a7 {[%clk 0:00:01.5]} 45... Kf4 {[%clk 0:00:21.2]} 0-1